[Event "Titled Tuesday Blitz March 21 Late 2023"]
[White "Makarian, Rudik"]
[Black "Moussard, Jules"]
[WhiteFideId "44105681"]
[BlackFideId "642908"]
[WhiteElo "2436"]
[BlackElo "2610"]
[Result "0-1"]
[Round "04"]
[TimeControl "180+2"]
[Date "2023.03.21"]
[WhiteClock "0:00:04"]
[BlackClock "0:00:18"]

1. d4 {[%clk 0:02:15]}  Nf6 {[%clk 0:02:59]} 2. c4 {[%clk 0:02:13]}  e6 {[%clk 0:02:59]} 3. Nf3 {[%clk 0:02:12]}  d5 {[%clk 0:02:58]} 4. Nc3 {[%clk 0:02:12]}  Nbd7 {[%clk 0:02:52]} 5. g3 {[%clk 0:02:10]}  b6 {[%clk 0:02:44]} 6. cxd5 {[%clk 0:02:09]}  exd5 {[%clk 0:02:44]} 7. Bg2 {[%clk 0:02:09]}  Bb7 {[%clk 0:02:45]} 8. O-O {[%clk 0:02:10]}  Bd6 {[%clk 0:02:43]} 9. Nb5 {[%clk 0:02:04]}  Ne4 {[%clk 0:02:39]} 10. Nd2 {[%clk 0:01:50]}  O-O {[%clk 0:02:36]} 11. Nxe4 {[%clk 0:01:43]}  dxe4 {[%clk 0:02:37]} 12. Qc2 {[%clk 0:01:39]}  Re8 {[%clk 0:02:36]} 13. Rd1 {[%clk 0:01:28]}  h6 {[%clk 0:02:34]} 14. Bf4 {[%clk 0:01:00]}  Bxf4 {[%clk 0:02:14]} 15. gxf4 {[%clk 0:01:01]}  Ba6 {[%clk 0:02:11]} 16. Nc3 {[%clk 0:00:54]}  f5 {[%clk 0:02:06]} 17. e3 {[%clk 0:00:50]}  Nf6 {[%clk 0:02:04]} 18. Rac1 {[%clk 0:00:49]}  Re7 {[%clk 0:01:52]} 19. a4 {[%clk 0:00:48]}  Kh8 {[%clk 0:01:49]} 20. Kh1 {[%clk 0:00:38]}  Qe8 {[%clk 0:01:46]} 21. Nb5 {[%clk 0:00:32]}  Bxb5 {[%clk 0:01:45]} 22. axb5 {[%clk 0:00:33]}  Qxb5 {[%clk 0:01:46]} 23. Bh3 {[%clk 0:00:31]}  Rd8 {[%clk 0:01:39]} 24. Rg1 {[%clk 0:00:30]}  Rd5 {[%clk 0:01:26]} 25. Rg6 {[%clk 0:00:27]}  c5 {[%clk 0:01:26]} 26. Rcg1 {[%clk 0:00:26]}  Qe8 {[%clk 0:01:21]} 27. dxc5 {[%clk 0:00:21]}  Rxc5 {[%clk 0:01:18]} 28. Qd2 {[%clk 0:00:18]}  Rd7 {[%clk 0:01:15]} 29. Qe2 {[%clk 0:00:17]}  Ng4 {[%clk 0:01:15]} 30. R6xg4 {[%clk 0:00:12]}  fxg4 {[%clk 0:01:15]} 31. Bxg4 {[%clk 0:00:12]}  Rd6 {[%clk 0:01:14]} 32. h3 {[%clk 0:00:12]}  Qd8 {[%clk 0:01:12]} 33. Bh5 {[%clk 0:00:11]}  Rd2 {[%clk 0:00:52]} 34. Qg4 {[%clk 0:00:11]}  Qf8 {[%clk 0:00:53]} 35. Rg2 {[%clk 0:00:09]}  Rc1+ {[%clk 0:00:51]} 36. Kh2 {[%clk 0:00:09]}  Rdd1 {[%clk 0:00:45]} 37. Bg6 {[%clk 0:00:09]}  Qe7 {[%clk 0:00:28]} 38. Qf5 {[%clk 0:00:08]}  Rc5 {[%clk 0:00:24]} 39. Qg4 {[%clk 0:00:07]}  Rd2 {[%clk 0:00:23]} 40. h4 {[%clk 0:00:07]}  Rxb2 {[%clk 0:00:22]} 41. h5 {[%clk 0:00:07]}  Rd2 {[%clk 0:00:22]} 42. Kh3 {[%clk 0:00:06]}  a5 {[%clk 0:00:21]} 43. f5 {[%clk 0:00:05]}  Rd6 {[%clk 0:00:21]} 44. Qf4 {[%clk 0:00:05]}  Qe5 {[%clk 0:00:21]} 45. Qh4 {[%clk 0:00:05]}  Rd1 {[%clk 0:00:20]} 46. Kg4 {[%clk 0:00:01]}  a4 {[%clk 0:00:18]} 47. Qh3 {[%clk 0:00:01]}  Rd6 {[%clk 0:00:17]} 48. Kh4 {[%clk 0:00:02]}  Qf6+ {[%clk 0:00:17]} 49. Kg4 {[%clk 0:00:02]}  a3 {[%clk 0:00:17]} 50. Kg3 {[%clk 0:00:02]}  a2 {[%clk 0:00:17]} 51. Rg1 {[%clk 0:00:03]}  a1=Q {[%clk 0:00:16]} 52. Rxa1 {[%clk 0:00:04]}  Qxa1 {[%clk 0:00:17]} 53. Kf4 {[%clk 0:00:04]}  Qe5+ {[%clk 0:00:17]} 54. Kg4 {[%clk 0:00:04]}  Rxg6+ {[%clk 0:00:18]} 0-1


[Site "https://www.chess.com"]

[Event "Titled Tuesday Blitz March 21 Late 2023"]
[White "Kramnik, Vladimir"]
[Black "Urazayev, Arystanbek"]
[WhiteFideId "4101588"]
[BlackFideId "13709810"]
[WhiteElo "2712"]
[BlackElo "2479"]
[Result "1-0"]
[Round "04"]
[TimeControl "180+2"]
[Date "2023.03.21"]
[WhiteClock "0:00:47"]
[BlackClock "0:00:07"]

1. d4 {[%clk 0:03:00]}  d5 {[%clk 0:02:54]} 2. Nf3 {[%clk 0:03:00]}  Nf6 {[%clk 0:02:53]} 3. e3 {[%clk 0:03:00]}  e6 {[%clk 0:02:53]} 4. Bd3 {[%clk 0:02:58]}  Be7 {[%clk 0:02:47]} 5. b3 {[%clk 0:02:51]}  O-O {[%clk 0:02:46]} 6. Bb2 {[%clk 0:02:51]}  b6 {[%clk 0:02:47]} 7. Nbd2 {[%clk 0:02:49]}  Bb7 {[%clk 0:02:48]} 8. Qe2 {[%clk 0:02:48]}  Ne4 {[%clk 0:02:47]} 9. O-O {[%clk 0:02:43]}  Nd7 {[%clk 0:02:45]} 10. c4 {[%clk 0:02:42]}  Ndf6 {[%clk 0:02:40]} 11. Rac1 {[%clk 0:02:38]}  Nxd2 {[%clk 0:02:37]} 12. Nxd2 {[%clk 0:02:35]}  c5 {[%clk 0:02:35]} 13. dxc5 {[%clk 0:02:34]}  Bxc5 {[%clk 0:02:28]} 14. Rfd1 {[%clk 0:02:34]}  Qe7 {[%clk 0:02:24]} 15. cxd5 {[%clk 0:02:30]}  Nxd5 {[%clk 0:02:06]} 16. Ne4 {[%clk 0:02:19]}  Ba3 {[%clk 0:01:52]} 17. Rc4 {[%clk 0:02:01]}  Bxb2 {[%clk 0:01:50]} 18. Qxb2 {[%clk 0:02:00]}  Rfd8 {[%clk 0:01:35]} 19. Be2 {[%clk 0:01:53]}  f5 {[%clk 0:01:11]} 20. Ng3 {[%clk 0:01:45]}  Nf6 {[%clk 0:01:01]} 21. Rcd4 {[%clk 0:01:39]}  Rxd4 {[%clk 0:01:01]} 22. Qxd4 {[%clk 0:01:38]}  Bd5 {[%clk 0:00:56]} 23. f3 {[%clk 0:01:35]}  Rc8 {[%clk 0:00:32]} 24. Qe5 {[%clk 0:01:15]}  Qc5 {[%clk 0:00:20]} 25. h4 {[%clk 0:01:13]}  Nd7 {[%clk 0:00:20]} 26. Qf4 {[%clk 0:01:10]}  e5 {[%clk 0:00:19]} 27. Qxf5 {[%clk 0:01:07]}  Qxe3+ {[%clk 0:00:17]} 28. Kh2 {[%clk 0:01:06]}  Bc6 {[%clk 0:00:10]} 29. Bc4+ {[%clk 0:00:59]}  Kh8 {[%clk 0:00:09]} 30. Rxd7 {[%clk 0:00:58]}  Qf4 {[%clk 0:00:07]} 31. Rf7 {[%clk 0:00:47]} 1-0


[Site "https://www.chess.com"]

[Event "Titled Tuesday Blitz March 21 Late 2023"]
[White "Holt, Conrad"]
[Black "Zierk, Steven"]
[WhiteFideId "2034387"]
[BlackFideId "2034255"]
[WhiteElo "2592"]
[BlackElo "2494"]
[Result "1-0"]
[Round "04"]
[TimeControl "180+2"]
[Date "2023.03.21"]
[WhiteClock "0:00:11"]
[BlackClock "0:00:10"]

1. d4 {[%clk 0:02:48]}  e6 {[%clk 0:03:00]} 2. c4 {[%clk 0:02:48]}  f5 {[%clk 0:03:01]} 3. g3 {[%clk 0:02:48]}  Nf6 {[%clk 0:03:01]} 4. Bg2 {[%clk 0:02:48]}  d5 {[%clk 0:03:02]} 5. Nh3 {[%clk 0:02:48]}  Bd6 {[%clk 0:03:02]} 6. O-O {[%clk 0:02:47]}  c6 {[%clk 0:03:01]} 7. Bf4 {[%clk 0:02:46]}  O-O {[%clk 0:03:00]} 8. Qb3 {[%clk 0:02:42]}  b6 {[%clk 0:02:58]} 9. Nd2 {[%clk 0:02:42]}  Bb7 {[%clk 0:02:57]} 10. Ng5 {[%clk 0:02:36]}  Qe7 {[%clk 0:02:49]} 11. Bxd6 {[%clk 0:02:31]}  Qxd6 {[%clk 0:02:48]} 12. c5 {[%clk 0:02:31]}  Qe7 {[%clk 0:02:45]} 13. cxb6 {[%clk 0:02:28]}  axb6 {[%clk 0:02:45]} 14. Qxb6 {[%clk 0:02:25]}  Ba6 {[%clk 0:02:39]} 15. Qb3 {[%clk 0:02:15]}  Ne4 {[%clk 0:02:26]} 16. Ndxe4 {[%clk 0:02:01]}  fxe4 {[%clk 0:02:27]} 17. Qe3 {[%clk 0:01:57]}  Nd7 {[%clk 0:01:49]} 18. f3 {[%clk 0:01:51]}  h6 {[%clk 0:01:38]} 19. Nh3 {[%clk 0:01:51]}  exf3 {[%clk 0:01:37]} 20. Rxf3 {[%clk 0:01:50]}  Rxf3 {[%clk 0:01:36]} 21. Bxf3 {[%clk 0:01:45]}  e5 {[%clk 0:01:36]} 22. Bg4 {[%clk 0:01:33]}  Nf6 {[%clk 0:01:33]} 23. Bf5 {[%clk 0:01:31]}  Re8 {[%clk 0:01:14]} 24. dxe5 {[%clk 0:01:30]}  Qxe5 {[%clk 0:01:13]} 25. Qxe5 {[%clk 0:01:30]}  Rxe5 {[%clk 0:01:14]} 26. Bd3 {[%clk 0:01:30]}  Bc8 {[%clk 0:01:10]} 27. Nf2 {[%clk 0:01:24]}  c5 {[%clk 0:01:08]} 28. b3 {[%clk 0:01:21]}  Be6 {[%clk 0:01:06]} 29. Rc1 {[%clk 0:00:46]}  Nd7 {[%clk 0:01:02]} 30. a4 {[%clk 0:00:39]}  Kf8 {[%clk 0:00:59]} 31. Kf1 {[%clk 0:00:34]}  c4 {[%clk 0:00:58]} 32. Bc2 {[%clk 0:00:26]}  Ke7 {[%clk 0:00:29]} 33. bxc4 {[%clk 0:00:17]}  dxc4 {[%clk 0:00:29]} 34. Ne4 {[%clk 0:00:18]}  Ra5 {[%clk 0:00:21]} 35. Nc3 {[%clk 0:00:16]}  Nb6 {[%clk 0:00:19]} 36. e4 {[%clk 0:00:15]}  Kd6 {[%clk 0:00:16]} 37. Rb1 {[%clk 0:00:15]}  Kc5 {[%clk 0:00:16]} 38. Ke2 {[%clk 0:00:15]}  Bd7 {[%clk 0:00:16]} 39. Ke3 {[%clk 0:00:15]}  Nxa4 {[%clk 0:00:14]} 40. Bxa4 {[%clk 0:00:14]}  Bxa4 {[%clk 0:00:15]} 41. Ra1 {[%clk 0:00:14]}  Kb4 {[%clk 0:00:14]} 42. Kd4 {[%clk 0:00:12]}  Bb3 {[%clk 0:00:13]} 43. Nd5+ {[%clk 0:00:12]}  Kb5 {[%clk 0:00:13]} 44. Rxa5+ {[%clk 0:00:12]}  Kxa5 {[%clk 0:00:14]} 45. Kc5 {[%clk 0:00:12]}  Ka6 {[%clk 0:00:14]} 46. e5 {[%clk 0:00:11]}  Kb7 {[%clk 0:00:14]} 47. e6 {[%clk 0:00:11]}  Kc8 {[%clk 0:00:14]} 48. Kd6 {[%clk 0:00:12]}  c3 {[%clk 0:00:12]} 49. Nxc3 {[%clk 0:00:11]}  Kd8 {[%clk 0:00:12]} 50. Nd5 {[%clk 0:00:11]}  Ba4 {[%clk 0:00:10]} 51. Nc7 {[%clk 0:00:11]} 1-0


[Site "https://www.chess.com"]

[Event "Titled Tuesday Blitz March 21 Late 2023"]
[White "Tanenbaum, Zachary"]
[Black "Vasquez Schroeder, Rodrigo"]
[WhiteFideId "2060850"]
[BlackFideId "3400042"]
[WhiteElo "2175"]
[BlackElo "2600"]
[Result "0-1"]
[Round "04"]
[TimeControl "180+2"]
[Date "2023.03.21"]
[WhiteClock "0:00:08"]
[BlackClock "0:00:41"]

1. e4 {[%clk 0:03:00]}  c5 {[%clk 0:02:59]} 2. Nf3 {[%clk 0:03:01]}  d6 {[%clk 0:02:59]} 3. d4 {[%clk 0:03:02]}  cxd4 {[%clk 0:03:00]} 4. Nxd4 {[%clk 0:03:02]}  Nf6 {[%clk 0:02:59]} 5. Nc3 {[%clk 0:03:03]}  a6 {[%clk 0:02:59]} 6. Be3 {[%clk 0:03:03]}  e6 {[%clk 0:02:58]} 7. f3 {[%clk 0:03:02]}  b5 {[%clk 0:02:58]} 8. Qd2 {[%clk 0:03:02]}  Nbd7 {[%clk 0:02:42]} 9. g4 {[%clk 0:03:00]}  b4 {[%clk 0:02:41]} 10. Nce2 {[%clk 0:03:00]}  h6 {[%clk 0:02:40]} 11. O-O-O {[%clk 0:02:59]}  d5 {[%clk 0:02:32]} 12. exd5 {[%clk 0:02:52]}  Nxd5 {[%clk 0:02:32]} 13. Nf4 {[%clk 0:02:40]}  Nxe3 {[%clk 0:02:29]} 14. Qxe3 {[%clk 0:02:40]}  Qb6 {[%clk 0:02:29]} 15. Qd2 {[%clk 0:02:25]}  Bc5 {[%clk 0:02:23]} 16. Bc4 {[%clk 0:02:18]}  O-O {[%clk 0:01:55]} 17. Nh5 {[%clk 0:02:03]}  Ne5 {[%clk 0:01:52]} 18. Bb3 {[%clk 0:01:58]}  Nxf3 {[%clk 0:01:49]} 19. Nf6+ {[%clk 0:01:36]}  gxf6 {[%clk 0:01:48]} 20. Qxh6 {[%clk 0:01:35]}  Bxd4 {[%clk 0:01:48]} 21. Kb1 {[%clk 0:01:24]}  Be3 {[%clk 0:01:43]} 22. Qxf6 {[%clk 0:01:21]}  Nd2+ {[%clk 0:01:37]} 23. Ka1 {[%clk 0:01:18]}  Qd4 {[%clk 0:01:30]} 24. Qxd4 {[%clk 0:01:10]}  Nxb3+ {[%clk 0:01:28]} 25. axb3 {[%clk 0:01:09]}  Bxd4 {[%clk 0:01:28]} 26. Rxd4 {[%clk 0:01:10]}  Bb7 {[%clk 0:01:28]} 27. Rhd1 {[%clk 0:01:08]}  a5 {[%clk 0:01:26]} 28. Kb1 {[%clk 0:01:03]}  Rac8 {[%clk 0:01:21]} 29. R1d2 {[%clk 0:01:01]}  Rc5 {[%clk 0:01:21]} 30. h4 {[%clk 0:00:57]}  Rfc8 {[%clk 0:01:16]} 31. g5 {[%clk 0:00:50]}  Rd5 {[%clk 0:01:16]} 32. Rxd5 {[%clk 0:00:49]}  Bxd5 {[%clk 0:01:15]} 33. Rd4 {[%clk 0:00:45]}  Rc5 {[%clk 0:01:14]} 34. Rf4 {[%clk 0:00:44]}  e5 {[%clk 0:01:13]} 35. Rg4 {[%clk 0:00:37]}  Be6 {[%clk 0:01:10]} 36. Rg2 {[%clk 0:00:33]}  Bf5 {[%clk 0:01:10]} 37. Rf2 {[%clk 0:00:33]}  Bg6 {[%clk 0:01:10]} 38. Kc1 {[%clk 0:00:33]}  e4 {[%clk 0:01:07]} 39. Re2 {[%clk 0:00:32]}  e3 {[%clk 0:01:03]} 40. Rxe3 {[%clk 0:00:18]}  Rxc2+ {[%clk 0:01:01]} 41. Kd1 {[%clk 0:00:18]}  Rxb2 {[%clk 0:01:02]} 42. Re5 {[%clk 0:00:19]}  Rxb3 {[%clk 0:01:01]} 43. Rxa5 {[%clk 0:00:19]}  Rh3 {[%clk 0:01:00]} 44. Rb5 {[%clk 0:00:17]}  Rxh4 {[%clk 0:01:00]} 45. Kc1 {[%clk 0:00:16]}  Kg7 {[%clk 0:00:59]} 46. Kb2 {[%clk 0:00:16]}  Rf4 {[%clk 0:00:54]} 47. Kb3 {[%clk 0:00:16]}  Rf5 {[%clk 0:00:55]} 48. Rxb4 {[%clk 0:00:15]}  Rxg5 {[%clk 0:00:55]} 49. Ka4 {[%clk 0:00:14]}  Bf5 {[%clk 0:00:54]} 50. Ka5 {[%clk 0:00:13]}  Bd7+ {[%clk 0:00:52]} 51. Ka6 {[%clk 0:00:13]}  Rd5 {[%clk 0:00:50]} 52. Ka7 {[%clk 0:00:12]}  Ra5+ {[%clk 0:00:49]} 53. Kb6 {[%clk 0:00:10]}  Rb5+ {[%clk 0:00:49]} 54. Rxb5 {[%clk 0:00:10]}  Bxb5 {[%clk 0:00:50]} 55. Kxb5 {[%clk 0:00:09]}  Kf6 {[%clk 0:00:50]} 56. Kc4 {[%clk 0:00:09]}  Kg5 {[%clk 0:00:50]} 57. Kd3 {[%clk 0:00:09]}  Kf4 {[%clk 0:00:50]} 58. Ke2 {[%clk 0:00:09]}  f6 {[%clk 0:00:46]} 59. Kf1 {[%clk 0:00:09]}  Kf3 {[%clk 0:00:46]} 60. Kg1 {[%clk 0:00:09]}  Ke2 {[%clk 0:00:42]} 61. Kg2 {[%clk 0:00:09]}  f5 {[%clk 0:00:42]} 62. Kg3 {[%clk 0:00:09]}  Ke3 {[%clk 0:00:43]} 63. Kg2 {[%clk 0:00:09]}  f4 {[%clk 0:00:41]} 64. Kg1 {[%clk 0:00:08]}  Ke2 {[%clk 0:00:41]} 0-1


[Site "https://www.chess.com"]

[Event "Titled Tuesday Blitz March 21 Late 2023"]
[White "Pap, Gyula"]
[Black "Andreikin, Dmitry"]
[WhiteFideId "725323"]
[BlackFideId "4158814"]
[WhiteElo "2519"]
[BlackElo "2736"]
[Result "0-1"]
[Round "04"]
[TimeControl "180+2"]
[Date "2023.03.21"]
[WhiteClock "0:00:01"]
[BlackClock "0:00:04"]

1. d4 {[%clk 0:03:00]}  d5 {[%clk 0:03:00]} 2. c4 {[%clk 0:02:59]}  c6 {[%clk 0:03:00]} 3. cxd5 {[%clk 0:02:56]}  cxd5 {[%clk 0:03:00]} 4. Nf3 {[%clk 0:02:55]}  Nc6 {[%clk 0:03:00]} 5. Nc3 {[%clk 0:02:55]}  Nf6 {[%clk 0:03:00]} 6. Bf4 {[%clk 0:02:54]}  Nh5 {[%clk 0:03:00]} 7. Bd2 {[%clk 0:02:53]}  Nf6 {[%clk 0:03:00]} 8. Bf4 {[%clk 0:02:53]}  Nh5 {[%clk 0:03:00]} 9. Bd2 {[%clk 0:02:53]}  g6 {[%clk 0:03:01]} 10. e3 {[%clk 0:02:48]}  Bg7 {[%clk 0:03:01]} 11. Qb3 {[%clk 0:02:35]}  Nf6 {[%clk 0:02:59]} 12. Bb5 {[%clk 0:02:11]}  O-O {[%clk 0:02:53]} 13. O-O {[%clk 0:02:11]}  Bd7 {[%clk 0:02:39]} 14. Bxc6 {[%clk 0:02:06]}  Bxc6 {[%clk 0:02:38]} 15. Ne5 {[%clk 0:02:06]}  Qb6 {[%clk 0:02:22]} 16. Qxb6 {[%clk 0:02:03]}  axb6 {[%clk 0:02:22]} 17. Rfc1 {[%clk 0:01:59]}  Rfc8 {[%clk 0:02:22]} 18. a3 {[%clk 0:01:58]}  Ne8 {[%clk 0:02:15]} 19. Na2 {[%clk 0:01:43]}  e6 {[%clk 0:02:07]} 20. Nb4 {[%clk 0:01:36]}  Ba4 {[%clk 0:02:06]} 21. Rxc8 {[%clk 0:01:37]}  Rxc8 {[%clk 0:02:06]} 22. Rc1 {[%clk 0:01:37]}  Rxc1+ {[%clk 0:02:06]} 23. Bxc1 {[%clk 0:01:38]}  Nd6 {[%clk 0:02:05]} 24. f3 {[%clk 0:01:29]}  f6 {[%clk 0:01:52]} 25. Ned3 {[%clk 0:01:26]}  Kf7 {[%clk 0:01:52]} 26. Kf2 {[%clk 0:01:25]}  Bb3 {[%clk 0:01:46]} 27. Bd2 {[%clk 0:01:13]}  Bc4 {[%clk 0:01:46]} 28. Bc3 {[%clk 0:01:06]}  Nb5 {[%clk 0:01:39]} 29. Nf4 {[%clk 0:01:01]}  Nxc3 {[%clk 0:01:26]} 30. bxc3 {[%clk 0:01:00]}  g5 {[%clk 0:01:27]} 31. Nh5 {[%clk 0:00:46]}  Bf8 {[%clk 0:01:26]} 32. g4 {[%clk 0:00:46]}  Bd6 {[%clk 0:01:24]} 33. Ng3 {[%clk 0:00:45]}  Kg6 {[%clk 0:01:18]} 34. h3 {[%clk 0:00:23]}  f5 {[%clk 0:01:19]} 35. Nf1 {[%clk 0:00:17]}  h5 {[%clk 0:01:11]} 36. Ng3 {[%clk 0:00:10]}  hxg4 {[%clk 0:00:36]} 37. hxg4 {[%clk 0:00:09]}  f4 {[%clk 0:00:36]} 38. Ne2 {[%clk 0:00:06]}  Kf6 {[%clk 0:00:24]} 39. e4 {[%clk 0:00:04]}  dxe4 {[%clk 0:00:22]} 40. fxe4 {[%clk 0:00:05]}  e5 {[%clk 0:00:20]} 41. Ng1 {[%clk 0:00:05]}  Be6 {[%clk 0:00:18]} 42. Nf3 {[%clk 0:00:04]}  exd4 {[%clk 0:00:12]} 43. cxd4 {[%clk 0:00:02]}  Bxb4 {[%clk 0:00:12]} 44. axb4 {[%clk 0:00:01]}  Bxg4 {[%clk 0:00:13]} 45. Ne5 {[%clk 0:00:01]}  Be6 {[%clk 0:00:12]} 46. Nd3 {[%clk 0:00:02]}  Bc4 {[%clk 0:00:12]} 47. Ne5 {[%clk 0:00:02]}  Bb3 {[%clk 0:00:12]} 48. Nd7+ {[%clk 0:00:02]}  Kg6 {[%clk 0:00:11]} 49. Ne5+ {[%clk 0:00:02]}  Kh5 {[%clk 0:00:11]} 50. Nd3 {[%clk 0:00:02]}  Bc2 {[%clk 0:00:10]} 51. Ke2 {[%clk 0:00:01]}  f3+ {[%clk 0:00:08]} 52. Ke3 {[%clk 0:00:01]}  Bxd3 {[%clk 0:00:08]} 53. Kxd3 {[%clk 0:00:02]}  Kg4 {[%clk 0:00:08]} 54. d5 {[%clk 0:00:01]}  f2 {[%clk 0:00:04]} 55. Ke3 {[%clk 0:00:01]}  f1=Q {[%clk 0:00:04]} 0-1


[Site "https://www.chess.com"]

[Event "Titled Tuesday Blitz March 21 Late 2023"]
[White "Timofeev, Artyom"]
[Black "Paravyan, David"]
[WhiteFideId "4140419"]
[BlackFideId "4194985"]
[WhiteElo "2586"]
[BlackElo "2577"]
[Result "1/2-1/2"]
[Round "04"]
[TimeControl "180+2"]
[Date "2023.03.21"]
[WhiteClock "0:00:35"]
[BlackClock "0:00:18"]

1. e4 {[%clk 0:03:00]}  e5 {[%clk 0:02:59]} 2. Nf3 {[%clk 0:03:00]}  Nf6 {[%clk 0:02:59]} 3. Nxe5 {[%clk 0:02:58]}  d6 {[%clk 0:02:59]} 4. Nd3 {[%clk 0:02:54]}  Nxe4 {[%clk 0:02:59]} 5. Qe2 {[%clk 0:02:54]}  Qe7 {[%clk 0:02:59]} 6. Nf4 {[%clk 0:02:54]}  Nc6 {[%clk 0:02:59]} 7. c3 {[%clk 0:02:49]}  Nf6 {[%clk 0:02:55]} 8. d4 {[%clk 0:02:46]}  g5 {[%clk 0:02:56]} 9. Nd3 {[%clk 0:02:37]}  Rg8 {[%clk 0:02:52]} 10. Nd2 {[%clk 0:02:28]}  Bf5 {[%clk 0:02:52]} 11. Qxe7+ {[%clk 0:02:26]}  Nxe7 {[%clk 0:02:53]} 12. Be2 {[%clk 0:02:24]}  O-O-O {[%clk 0:02:52]} 13. Nc4 {[%clk 0:02:22]}  Ned5 {[%clk 0:02:51]} 14. Ne3 {[%clk 0:02:22]}  Bg6 {[%clk 0:02:35]} 15. g3 {[%clk 0:02:10]}  Re8 {[%clk 0:02:31]} 16. Bd2 {[%clk 0:01:56]}  h5 {[%clk 0:02:16]} 17. O-O-O {[%clk 0:01:50]}  Nxe3 {[%clk 0:02:09]} 18. Bxe3 {[%clk 0:01:49]}  Nd5 {[%clk 0:02:06]} 19. Kd2 {[%clk 0:01:49]}  Bh6 {[%clk 0:02:03]} 20. Rde1 {[%clk 0:01:46]}  Re7 {[%clk 0:01:56]} 21. Bf3 {[%clk 0:01:45]}  Nxe3 {[%clk 0:01:54]} 22. fxe3 {[%clk 0:01:45]}  Rge8 {[%clk 0:01:53]} 23. Bg2 {[%clk 0:01:45]}  c6 {[%clk 0:01:13]} 24. Rhf1 {[%clk 0:01:43]}  Kc7 {[%clk 0:01:12]} 25. h3 {[%clk 0:01:37]}  f5 {[%clk 0:01:07]} 26. h4 {[%clk 0:01:33]}  f4 {[%clk 0:00:50]} 27. exf4 {[%clk 0:01:16]}  Rxe1 {[%clk 0:00:47]} 28. Nxe1 {[%clk 0:01:16]}  gxh4 {[%clk 0:00:45]} 29. gxh4 {[%clk 0:01:16]}  Bf5 {[%clk 0:00:41]} 30. Nd3 {[%clk 0:01:11]}  Rf8 {[%clk 0:00:38]} 31. Ke3 {[%clk 0:00:58]}  Re8+ {[%clk 0:00:36]} 32. Kd2 {[%clk 0:00:58]}  Rg8 {[%clk 0:00:30]} 33. Bf3 {[%clk 0:00:57]}  Rg3 {[%clk 0:00:30]} 34. Ke3 {[%clk 0:00:37]}  Rh3 {[%clk 0:00:20]} 35. Rh1 {[%clk 0:00:37]}  Rxh1 {[%clk 0:00:15]} 36. Bxh1 {[%clk 0:00:36]}  Bxd3 {[%clk 0:00:16]} 37. Kxd3 {[%clk 0:00:36]}  Bxf4 {[%clk 0:00:16]} 38. Bf3 {[%clk 0:00:36]}  Bg3 {[%clk 0:00:17]} 39. Bxh5 {[%clk 0:00:36]}  Bxh4 {[%clk 0:00:18]} 40. Bf3 {[%clk 0:00:36]}  d5 {[%clk 0:00:18]} 41. c4 {[%clk 0:00:35]}  dxc4+ {[%clk 0:00:18]} 1/2-1/2


[Site "https://www.chess.com"]

[Event "Titled Tuesday Blitz March 21 Late 2023"]
[White "Bartel, Mateusz"]
[Black "Svane, Rasmus"]
[WhiteFideId "1112635"]
[BlackFideId "4657101"]
[WhiteElo "2521"]
[BlackElo "2597"]
[Result "0-1"]
[Round "04"]
[TimeControl "180+2"]
[Date "2023.03.21"]
[WhiteClock "0:00:01"]
[BlackClock "0:00:06"]

1. e4 {[%clk 0:03:00]}  c6 {[%clk 0:02:59]} 2. Nf3 {[%clk 0:02:59]}  d5 {[%clk 0:02:59]} 3. d3 {[%clk 0:03:00]}  dxe4 {[%clk 0:02:57]} 4. dxe4 {[%clk 0:03:00]}  Qxd1+ {[%clk 0:02:58]} 5. Kxd1 {[%clk 0:03:00]}  Nf6 {[%clk 0:02:59]} 6. Nbd2 {[%clk 0:03:00]}  g6 {[%clk 0:02:59]} 7. Bc4 {[%clk 0:03:00]}  Bh6 {[%clk 0:02:53]} 8. Ne5 {[%clk 0:02:47]}  O-O {[%clk 0:02:49]} 9. f3 {[%clk 0:02:47]}  Nbd7 {[%clk 0:02:46]} 10. Nd3 {[%clk 0:02:42]}  Rd8 {[%clk 0:02:24]} 11. a4 {[%clk 0:02:29]}  Nf8 {[%clk 0:02:23]} 12. Ke2 {[%clk 0:02:18]}  Be6 {[%clk 0:02:21]} 13. Bxe6 {[%clk 0:02:16]}  Nxe6 {[%clk 0:02:22]} 14. Nb3 {[%clk 0:02:14]}  Bxc1 {[%clk 0:02:23]} 15. Rhxc1 {[%clk 0:02:14]}  Ne8 {[%clk 0:01:57]} 16. Ke3 {[%clk 0:01:51]}  Nd6 {[%clk 0:01:57]} 17. c4 {[%clk 0:01:44]}  f6 {[%clk 0:01:43]} 18. Nbc5 {[%clk 0:01:24]}  Nxc5 {[%clk 0:01:40]} 19. Nxc5 {[%clk 0:01:24]}  Kf7 {[%clk 0:01:37]} 20. a5 {[%clk 0:01:18]}  b6 {[%clk 0:01:32]} 21. Nd3 {[%clk 0:01:18]}  Nb7 {[%clk 0:01:28]} 22. b4 {[%clk 0:01:05]}  c5 {[%clk 0:01:19]} 23. a6 {[%clk 0:01:02]}  Nd6 {[%clk 0:01:14]} 24. b5 {[%clk 0:01:00]}  Rd7 {[%clk 0:01:03]} 25. Nf4 {[%clk 0:00:59]}  g5 {[%clk 0:00:56]} 26. Ne2 {[%clk 0:00:57]}  Rad8 {[%clk 0:00:55]} 27. Ra3 {[%clk 0:00:56]}  e6 {[%clk 0:00:51]} 28. Rcc3 {[%clk 0:00:52]}  Ke7 {[%clk 0:00:51]} 29. Nc1 {[%clk 0:00:47]}  h5 {[%clk 0:00:49]} 30. Rc2 {[%clk 0:00:47]}  Nf7 {[%clk 0:00:45]} 31. Rd3 {[%clk 0:00:46]}  Ne5 {[%clk 0:00:45]} 32. Rxd7+ {[%clk 0:00:44]}  Rxd7 {[%clk 0:00:46]} 33. Ne2 {[%clk 0:00:35]}  h4 {[%clk 0:00:46]} 34. Rc3 {[%clk 0:00:27]}  Rd1 {[%clk 0:00:45]} 35. h3 {[%clk 0:00:25]}  Rb1 {[%clk 0:00:39]} 36. f4 {[%clk 0:00:22]}  gxf4+ {[%clk 0:00:39]} 37. Nxf4 {[%clk 0:00:22]}  Rb4 {[%clk 0:00:39]} 38. Nd3 {[%clk 0:00:16]}  Nxc4+ {[%clk 0:00:30]} 39. Kf3 {[%clk 0:00:15]}  Ra4 {[%clk 0:00:26]} 40. Nf2 {[%clk 0:00:08]}  Nd6 {[%clk 0:00:24]} 41. Kg4 {[%clk 0:00:07]}  Nxe4 {[%clk 0:00:24]} 42. Nxe4 {[%clk 0:00:07]}  Rxe4+ {[%clk 0:00:25]} 43. Kh5 {[%clk 0:00:07]}  f5 {[%clk 0:00:18]} 44. g3 {[%clk 0:00:06]}  hxg3 {[%clk 0:00:18]} 45. Rxg3 {[%clk 0:00:07]}  f4 {[%clk 0:00:15]} 46. Rg7+ {[%clk 0:00:06]}  Kf6 {[%clk 0:00:11]} 47. Rxa7 {[%clk 0:00:07]}  f3 {[%clk 0:00:11]} 48. Ra8 {[%clk 0:00:07]}  Ke5 {[%clk 0:00:06]} 49. Rf8 {[%clk 0:00:07]}  Re3 {[%clk 0:00:06]} 50. a7 {[%clk 0:00:06]}  Ra3 {[%clk 0:00:07]} 51. a8=Q {[%clk 0:00:05]}  Rxa8 {[%clk 0:00:07]} 52. Rxa8 {[%clk 0:00:06]}  Kf4 {[%clk 0:00:08]} 53. Rf8+ {[%clk 0:00:05]}  Kg3 {[%clk 0:00:08]} 54. h4 {[%clk 0:00:02]}  e5 {[%clk 0:00:07]} 55. Rg8+ {[%clk 0:00:02]}  Kf4 {[%clk 0:00:06]} 56. Rf8+ {[%clk 0:00:02]}  Kg3 {[%clk 0:00:07]} 57. Rg8+ {[%clk 0:00:02]}  Kh3 {[%clk 0:00:08]} 58. Rf8 {[%clk 0:00:01]}  e4 {[%clk 0:00:08]} 59. Rf4 {[%clk 0:00:01]}  Kg3 {[%clk 0:00:07]} 60. Rxe4 {[%clk 0:00:02]}  f2 {[%clk 0:00:07]} 61. Re3+ {[%clk 0:00:01]}  Kg2 {[%clk 0:00:06]} 62. Re2 {[%clk 0:00:01]}  c4 {[%clk 0:00:06]} 63. Kg4 {[%clk 0:00:01]}  Kg1 {[%clk 0:00:06]} 0-1


[Site "https://www.chess.com"]